bitfinex-derivatives/quotes_SOLF0:USTF0_20250409
["timestamp","ask_amount","ask_price","bid_price","bid_amount"]
[1744172910717,47.74,103.88,103.79,4.3896]
[1744172911225,0.06427761,103.85,103.82,0.06650812]
[1744172911424,47.82427761,103.85,103.82,0.06650812]
[1744172911626,8.8376,103.84,103.82,0.06650812]
[1744172911929,8.8376,103.84,103.75,84.48224157]
[1744172912236,8.8376,103.84,103.79,9.6427]
[1744172912928,0.06839496,103.83,103.8,0.07141683]
[1744172913133,47.76,103.82,103.8,0.07141683]
[1744172913324,0.06839496,103.83,103.75,52.5325]
[1744172913731,8.8376,103.84,103.75,52.5325]
[1744172914430,0.06889987,103.81,103.78,0.0687735]
[1744172914731,0.06889987,103.81,103.8,9.6423]
[1744172915224,9.987e-05,103.81,103.8,9.6423]
[1744172916430,9.987e-05,103.81,103.78,9.7126735]
[1744172916824,9.987e-05,103.81,103.78,0.0687735]
[1744172917028,9.987e-05,103.81,103.8,9.6423]
[1744172917829,9.987e-05,103.81,103.79,9.6428]
[1744172918837,9.987e-05,103.81,103.78,9.7123735]
[1744172919136,9.987e-05,103.81,103.78,0.0687735]
[1744172919321,9.987e-05,103.81,103.79,9.6428]
[1744172919838,9.987e-05,103.81,103.78,0.0687735]
[1744172920029,9.987e-05,103.81,103.8,9.6423]
[1744172925337,52.3365,103.86,103.84,9.6381]
[1744172925636,4.6685,103.87,103.8,31.94974157]
[1744172926137,4.6685,103.87,103.85,9.637]
[1744172926431,4.73565354,103.87,103.85,9.71023296]
[1744172926639,4.73565354,103.87,103.86,9.6368]
[1744172927437,0.06715354,103.87,103.86,9.6368]
[1744172927938,5.354e-05,103.87,103.86,9.6368]
[1744172928629,4.5877,103.92,103.9,9.6324]
[1744172929132,4.5877,103.92,103.86,31.94974157]
[1744172929445,52.2877,103.92,103.83,6.8668]
[1744172929734,9.69684998,103.89,103.86,0.0682644]
[1744172929933,0.06234998,103.89,103.86,0.0682644]
[1744172930141,47.76234998,103.89,103.86,0.0682644]
[1744172930744,57.39634998,103.89,103.86,0.0682644]
[1744172931240,47.76234998,103.89,103.87,9.6352]
[1744172931445,47.76234998,103.89,103.86,0.0682644]
[1744172932034,47.76234998,103.89,103.86,9.7043644]
[1744172932338,47.76234998,103.89,103.86,0.0682644]
[1744172932844,0.06234998,103.89,103.86,0.0682644]
[1744172933345,47.76234998,103.89,103.86,0.0682644]
[1744172933846,9.6358,103.87,103.86,0.0682644]
[1744172934650,52.25364998,103.89,103.86,0.0682644]
[1744172934947,52.25364998,103.89,103.87,9.6358]
[1744172935546,52.25364998,103.89,103.86,9.7045644]
[1744172935747,61.88764998,103.89,103.86,9.7045644]
[1744172936549,4.55364998,103.89,103.86,0.0682644]
[1744172936751,0.06234998,103.89,103.86,0.0682644]
[1744172937045,0.06234998,103.89,103.88,9.6349]
[1744172937243,4.998e-05,103.89,103.88,9.6349]
[1744172940957,4.998e-05,103.89,103.87,57.3354]
[1744172941258,4.998e-05,103.89,103.86,0.0682644]
[1744172942866,4.998e-05,103.89,103.88,9.6349]
[1744172944057,4.998e-05,103.89,103.87,9.6355]
[1744172944362,4.998e-05,103.89,103.86,0.0682644]
[1744172944562,4.998e-05,103.89,103.88,9.6349]
[1744172951968,4.998e-05,103.89,103.86,0.0682644]
[1744172952369,9.63444998,103.89,103.87,9.6358]
[1744172952667,4.998e-05,103.89,103.87,9.6358]
[1744172953371,4.38424998,103.89,103.87,9.6358]
[1744172953571,4.38424998,103.89,103.88,9.6349]
[1744172953769,4.38424998,103.89,103.86,0.0682644]
[1744172954273,9.1774,103.88,103.86,0.0682644]
[1744172954664,9.1774,103.88,103.87,9.6358]
[1744172954861,9.1774,103.88,103.86,0.0682644]
[1744172956073,9.1774,103.88,103.87,9.6358]
[1744172956277,9.1774,103.88,103.86,0.0682644]
[1744172956575,18.8127,103.88,103.86,0.0682644]
[1744172957468,18.8127,103.88,103.86,9.7046644]
[1744172957469,9.1774,103.88,103.86,9.7046644]
[1744172958576,18.8123,103.88,103.86,9.7046644]
[1744172958875,18.8123,103.88,103.86,0.0682644]
[1744172960576,9.1774,103.88,103.86,9.7045644]
[1744172961078,18.8125,103.88,103.86,9.7045644]
[1744172961280,18.8125,103.88,103.86,0.0682644]
[1744172963081,9.6358,103.87,103.84,9.6381]
[1744172964079,9.6377,103.85,103.82,9.6398]
[1744172964274,0.06245493,103.87,103.84,0.06115147]
[1744172964480,9.1774,103.88,103.8,47.62]
[1744172964786,0.06756339,103.87,103.85,9.6373]
[1744172964980,0.06756339,103.87,103.84,0.06869406]
[1744172965875,9.70396339,103.87,103.84,9.70689406]
[1744172966080,0.06756339,103.87,103.84,9.70689406]
[1744172966780,9.6374,103.86,103.84,0.06869406]
[1744172967084,47.62,103.86,103.8,47.62]
[1744172967279,47.62,103.86,103.81,20.04474662]
[1744172967583,47.62,103.86,103.8,47.62]
[1744172967781,9.6382,103.85,103.82,9.6398]
[1744172968078,67.66474662,103.86,103.8,47.62]
[1744172968284,4.6731,103.84,103.82,0.07203598]
[1744172968482,14.3122,103.84,103.82,0.07203598]
[1744172968681,4.7387302,103.84,103.82,0.07203598]
[1744172969285,14.3775302,103.84,103.82,0.07203598]
[1744172970280,9.6396,103.83,103.82,0.07203598]
[1744172970486,52.4672,103.83,103.75,20.04474662]
[1744172970879,52.4672,103.83,103.74,47.64]
[1744172970880,20.04474662,103.82,103.74,47.64]
[1744172971582,0.07343826,103.79,103.77,0.05970253]
[1744172972681,0.07343826,103.79,103.78,9.6442]
[1744172973287,3.826e-05,103.79,103.78,9.6442]
[1744172973796,4.8272,103.83,103.82,9.6405]
[1744172974087,47.64,103.86,103.78,32.09486193]
[1744172974289,47.64,103.86,103.79,62.0]
[1744172974487,47.64,103.86,103.8,47.64]
[1744172974986,47.64,103.86,103.84,9.6382]
[1744172975484,47.70068672,103.86,103.84,9.6382]
[1744172975982,57.33818672,103.86,103.83,9.639]
[1744172976182,47.70068672,103.86,103.82,0.06866411]
[1744172976487,9.6381,103.85,103.82,9.70856411]
[1744172976687,47.70068672,103.86,103.82,0.06866411]
[1744172976989,47.70068672,103.86,103.84,9.6386]
[1744172977188,0.06068672,103.86,103.82,0.06866411]
[1744172977990,0.06068672,103.86,103.85,9.6377]
[1744172978484,8.672e-05,103.86,103.85,9.6377]
[1744172989387,8.672e-05,103.86,103.84,0.07282081]
[1744172989388,8.672e-05,103.86,103.84,9.71102081]
[1744172990298,8.672e-05,103.86,103.85,9.6377]
[1744172991295,8.672e-05,103.86,103.84,9.71092081]
[1744172991594,8.672e-05,103.86,103.84,0.07282081]
[1744172991896,8.672e-05,103.86,103.85,9.6377]
[1744172992493,8.672e-05,103.86,103.84,9.71092081]
[1744172994800,8.672e-05,103.86,103.85,9.6377]
[1744172999700,8.672e-05,103.86,103.84,9.71092081]
[1744173000003,8.672e-05,103.86,103.84,0.07282081]
[1744173000697,8.672e-05,103.86,103.85,9.6377]
[1744173001197,105.68120349,103.98,103.85,538.30384883]
[1744173001406,4.6899,103.96,103.94,9.6288]
[1744173001595,4.6899,103.96,103.91,20.04384883]
[1744173001800,48.61115131,103.97,103.96,9.6275]
[1744173002103,39.63045131,103.95,103.9,47.54]
[1744173002305,49.25935131,103.95,103.92,9.6307]
[1744173002702,49.32840864,103.95,103.92,9.6307]
[1744173002900,39.69950864,103.95,103.91,0.06345936]
[1744173003107,67.58384883,103.94,103.86,4.5616]
[1744173003308,9.633,103.91,103.87,9.6354]
[1744173003615,9.633,103.91,103.84,47.54]
[1744173003616,47.54,103.91,103.84,47.54]
[1744173003912,9.0441,103.9,103.84,47.54]
[1744173004301,0.06579335,103.88,103.86,0.06295314]
[1744173004515,0.06579335,103.88,103.87,9.6358]
[1744173004710,79.59057378,103.97,103.87,79.59057378]
[1744173004904,9.0441,103.96,103.87,84.12177378]
[1744173005206,9.0441,103.96,103.93,9.6294]
[1744173005523,4.4429,103.96,103.9,47.54]
[1744173005904,0.06434434,103.94,103.92,0.06891097]
[1744173006313,0.06434434,103.94,103.93,9.6299]
[1744173006615,4.7981,103.99,103.93,79.57057378]
[1744173006809,9.6229,104.01,103.93,79.57057378]
[1744173007013,4.7981,104.02,103.93,79.57057378]
[1744173007403,9.6229,104.01,103.97,9.6259]
[1744173007599,9.6229,104.01,103.93,79.57057378]
[1744173007805,0.06985755,104.0,103.98,0.07381272]
[1744173008097,9.69455755,104.0,103.98,0.07381272]
[1744173008397,0.06985755,104.0,103.98,0.07381272]
[1744173008599,0.06985755,104.0,103.99,9.6247]
[1744173010209,4.4721,104.05,103.99,89.09057378]
[1744173010412,4.4721,104.08,104.01,32.05057378]
[1744173010612,4.4721,104.08,104.05,9.6183]
[1744173011405,4.53517206,104.08,104.05,0.07016113]
[1744173012009,0.06307206,104.08,104.05,47.47016113]
[1744173012413,13.9421,104.13,104.06,32.05057378]
[1744173012607,145.3116548,104.14,104.08,32.05057378]
[1744173012812,145.3116548,104.14,104.09,47.4]
[1744173013217,145.3116548,104.14,104.08,32.05057378]
[1744173013411,145.3116548,104.14,104.07,4.5328]
[1744173013605,0.06230133,104.12,104.1,0.06423914]
[1744173014223,14.40390133,104.12,104.1,0.06423914]
[1744173014512,4.79090133,104.12,104.1,0.06423914]
[1744173014814,4.79090133,104.12,104.04,32.05057378]
[1744173014815,9.2135,104.11,104.04,32.05057378]
[1744173015015,18.8277,104.11,104.06,9.6174]
[1744173015215,9.2135,104.11,104.06,9.6174]
[1744173015613,9.2135,104.11,104.04,32.05057378]
[1744173015815,0.06841297,104.1,104.07,0.0611687]
[1744173016116,0.06841297,104.1,104.09,9.6155]
[1744173016316,32.05057378,104.17,104.07,0.0611687]
[1744173016317,47.4,104.16,104.08,32.05057378]
[1744173016515,47.4,104.16,104.08,94.05057378]
[1744173016717,47.4,104.16,104.12,9.6126]
[1744173017112,47.4,104.16,104.07,0.9512]
[1744173017320,47.4,104.16,104.06,79.45057378]
[1744173017511,0.06449199,104.13,104.1,0.06150411]
[1744173017921,0.06449199,104.13,104.06,47.4]
[1744173018221,9.6114,104.14,104.09,9.6147]
[1744173018617,47.38,104.13,104.09,9.6147]
[1744173018813,47.38,104.13,104.03,32.05057378]
[1744173019014,9.4592,104.12,104.03,32.05057378]
[1744173019215,9.52942986,104.12,104.1,0.07266378]
[1744173019517,9.53081228,104.12,104.03,32.05057378]
[1744173020020,32.05057378,104.04,103.92,32.05057378]
[1744173020222,56.8392,104.03,103.94,32.05057378]
[1744173020609,4.7664,104.03,103.96,32.05057378]
[1744173020813,47.38,104.05,103.97,0.06519519]
[1744173021008,47.38,104.05,103.97,1.14059519]
[1744173021213,47.38,104.05,103.97,1.0754]
[1744173022019,4.8072,104.08,104.0,0.07112641]
[1744173022223,4.8072,104.08,104.0,32.12170019]
[1744173022420,47.38,104.09,104.02,32.05057378]
[1744173022624,47.38,104.12,104.04,32.05057378]
[1744173023124,56.9932,104.12,104.07,9.6171]
[1744173023316,0.06934406,104.09,104.07,9.67973249]
[1744173023513,0.06934406,104.09,104.07,0.06263249]
[1744173023716,0.06934406,104.09,104.08,71.6164]
[1744173024628,47.36,104.16,104.08,113.87088482]
[1744173024829,4.3869,104.17,104.1,51.87088482]
[1744173025728,0.06472033,104.15,104.12,9.68536916]
[1744173026128,0.06472033,104.15,104.13,9.6115]
[1744173026427,0.06472033,104.15,104.12,0.07276916]
[1744173026927,0.06472033,104.15,104.12,9.68536916]
[1744173027534,47.42472033,104.15,104.12,0.07276916]
[1744173027921,47.42472033,104.15,104.13,62.0]
[1744173028128,0.06472033,104.15,104.14,9.6109]
[1744173028329,0.06472033,104.15,104.13,62.0]
[1744173028330,8.9563,104.19,104.13,62.0]
[1744173029035,47.36,104.2,104.13,113.87088482]
[1744173029224,47.36,104.2,104.13,114.96118482]
[1744173029422,47.36,104.2,104.18,9.6066]
[1744173029826,47.42909401,104.2,104.18,0.06464327]
[1744173030031,47.42909401,104.2,104.11,4.7586]
[1744173030032,4.3992,104.19,104.11,4.7586]
[1744173030228,4.3992,104.19,104.11,56.62948482]
[1744173030429,14.006,104.19,104.15,9.6099]
[1744173030629,4.4506,104.18,104.15,9.6099]
[1744173030832,4.3992,104.19,104.11,56.62948482]
[1744173031131,0.07070872,104.16,104.15,9.6094]
[1744173032036,0.07070872,104.16,104.14,9.68384953]
[1744173032533,0.07070872,104.16,104.11,4.7586]
[1744173032534,0.07070872,104.16,104.05,559.45088482]
[1744173032730,0.07070872,104.16,104.05,568.78428482]
[1744173032933,51.87088482,104.15,104.06,62.0]
[1744173033133,47.34,104.17,104.07,99.21088482]
[1744173033632,47.34,104.17,104.11,9.613]
[1744173033832,0.06542634,104.13,104.11,0.06795363]
[1744173034432,0.06542634,104.13,104.12,9.6126]
[1744173035740,0.06542634,104.13,104.11,9.68115363]
[1744173035937,0.06542634,104.13,104.11,0.06795363]
[1744173036439,0.06542634,104.13,104.11,9.68105363]
[1744173036938,0.06542634,104.13,104.12,9.6127]
[1744173038234,2.634e-05,104.13,104.12,9.6127]
[1744173042852,2.634e-05,104.13,104.11,9.68105363]
[1744173043249,2.634e-05,104.13,104.11,0.06795363]
[1744173043948,2.634e-05,104.13,104.11,9.68115363]
[1744173045053,2.634e-05,104.13,104.12,9.6127]
[1744173047152,2.634e-05,104.13,104.11,9.68115363]
[1744173047952,2.634e-05,104.13,104.12,9.6127]
[1744173050260,2.634e-05,104.13,104.11,9.68125363]
[1744173050956,2.634e-05,104.13,104.12,9.6127]
[1744173051256,2.634e-05,104.13,104.11,0.06795363]
[1744173051852,2.634e-05,104.13,104.04,79.17656938]
[1744173052157,65.818,104.14,104.11,9.6131]
[1744173052755,9.6118,104.13,104.11,9.6131]
[1744173052951,56.27383959,104.14,104.11,0.06264617]
[1744173053746,9.6127,104.12,104.11,0.06264617]
[1744173053954,56.27383959,104.14,104.05,9.3334]
[1744173054155,47.28,104.13,104.05,9.3334]
[1744173054354,9.6142,104.11,104.05,9.3334]
[1744173054758,47.28,104.13,104.06,62.0]
[1744173054959,0.06340018,104.09,104.07,0.06974942]
[1744173056065,0.06340018,104.09,104.08,9.6164]
[1744173059655,47.28,104.13,104.07,0.06974942]
[1744173060662,9.6141,104.11,104.07,0.06974942]
[1744173060854,9.68375112,104.11,104.08,9.616]
[1744173061055,47.28,104.1,104.01,47.28]
[1744173061251,9.6174,104.07,104.04,9.6197]
[1744173061452,56.8974,104.07,104.01,47.28]
[1744173062059,56.8974,104.07,104.04,9.6194]
[1744173062260,0.06525575,104.05,104.04,9.6194]
[1744173063757,51.865,104.1,104.03,0.06306826]
[1744173063957,9.2289,104.12,104.04,79.19656938]
[1744173064159,47.3,104.13,104.06,31.89656938]
[1744173064355,4.4236,104.15,104.08,31.89656938]
[1744173064564,51.7236,104.15,104.08,31.89656938]
[1744173065062,0.06107364,104.13,104.1,0.06588629]
[1744173065560,0.06107364,104.13,104.12,9.6127]
[1744173066158,0.06107364,104.13,104.11,9.6133]
[1744173066559,0.06107364,104.13,104.1,0.06588629]
[1744173067264,0.06107364,104.13,104.11,9.6136]
[1744173067466,0.06107364,104.13,104.1,0.06588629]
[1744173068563,0.06107364,104.13,104.11,9.6127]
[1744173068763,0.06107364,104.13,104.1,0.06588629]
[1744173069770,7.364e-05,104.13,104.1,31.96245567]
[1744173070069,47.28,104.19,104.11,4.4053]
[1744173070273,56.8867,104.19,104.15,9.6092]
[1744173070469,56.8867,104.19,104.11,4.4053]
[1744173070664,47.28,104.19,104.12,79.13656938]
[1744173071065,0.0642496,104.17,104.14,0.06993095]
[1744173072072,0.0642496,104.17,104.06,80.56196938]
[1744173072373,47.22,104.16,104.06,85.11406938]
[1744173072567,47.22,104.16,104.08,31.89656938]
[1744173072771,51.8538,104.19,104.1,31.89656938]
[1744173072961,51.8538,104.19,104.16,9.6084]
[1744173073469,51.91491986,104.19,104.16,9.6084]
[1744173073670,51.91491986,104.19,104.16,0.06583614]
[1744173074073,9.6072,104.18,104.16,0.06583614]
[1744173074675,9.6081,104.17,104.16,0.06583614]
[1744173074972,51.91491986,104.19,104.12,47.22]
[1744173075173,9.6085,104.17,104.14,9.6104]
[1744173075374,51.8538,104.19,104.09,52.0274]
[1744173075974,0.07001989,104.15,104.13,0.06684178]
[1744173076377,0.07001989,104.15,104.13,9.67824178]
[1744173077075,0.07001989,104.15,104.14,9.6109]
[1744173077263,0.07001989,104.15,104.13,0.06684178]
[1744173077470,47.22,104.14,104.07,62.0]
[1744173077665,51.9377,104.14,104.07,62.0]
[1744173078376,47.22,104.14,104.08,31.89656938]
[1744173078573,47.22,104.14,104.13,9.6118]
[1744173078878,47.22,104.14,104.09,47.22]
[1744173079072,47.22,104.14,104.12,0.06556333]
[1744173079479,47.29273742,104.14,104.08,31.89656938]
[1744173079672,47.29273742,104.14,104.12,0.06064887]
[1744173080076,47.28171414,104.14,104.12,0.07032341]
[1744173080574,56.89301414,104.14,104.12,0.07032341]
[1744173080780,47.28171414,104.14,104.12,0.07032341]
[1744173081077,56.89261414,104.14,104.12,0.07032341]
[1744173081977,9.6118,104.13,104.12,0.07032341]
[1744173082277,4.7681,104.13,104.06,84.98696938]
[1744173083379,0.06182573,104.11,104.08,0.06131959]
[1744173083980,0.06182573,104.11,104.1,9.6137]
[1744173084183,4.6635,104.16,104.08,31.95788897]
[1744173084184,51.8835,104.16,104.08,31.95788897]
[1744173084369,51.8835,104.16,104.08,31.89656938]
[1744173084778,61.493,104.16,104.08,31.89656938]
[1744173085078,61.493,104.16,104.09,62.0]
[1744173085275,0.06071123,104.13,104.11,0.06102208]
[1744173085476,0.06071123,104.13,104.11,9.67422208]
[1744173085683,0.06071123,104.13,104.11,0.06102208]
[1744173085977,0.06071123,104.13,104.11,9.67432208]
[1744173086280,0.06071123,104.13,104.11,0.06102208]
[1744173086584,0.06071123,104.13,104.12,9.6127]
[1744173086882,0.06071123,104.13,104.11,0.06102208]
[1744173087581,47.22,104.12,104.06,51.665]
[1744173087782,56.8332,104.12,104.06,51.665]
[1744173087978,61.2551,104.12,104.06,51.665]
[1744173088175,51.6419,104.12,104.06,47.22]
[1744173088384,9.6147,104.1,104.04,36.72736938]
[1744173088683,0.06517993,104.08,104.06,9.68717152]
[1744173088884,0.06517993,104.08,104.06,0.06987152]
[1744173089383,0.06517993,104.08,104.07,9.6173]
[1744173089885,9.68207993,104.08,104.06,0.06987152]
[1744173090282,0.06517993,104.08,104.06,0.06987152]
[1744173090483,0.06517993,104.08,104.07,9.6173]
[1744173091281,0.06517993,104.08,104.06,0.06987152]
[1744173094102,9.6173,104.07,104.06,0.06987152]
[1744173094589,0.06517993,104.08,104.06,0.06987152]
[1744173094886,9.68227993,104.08,104.06,0.06987152]
[1744173095087,0.06517993,104.08,104.06,0.06987152]
[1744173095387,9.68247993,104.08,104.06,0.06987152]
[1744173095588,0.06517993,104.08,104.06,0.06987152]
[1744173096790,9.68217993,104.08,104.06,0.06987152]
[1744173098397,0.06517993,104.08,104.06,9.68797152]
[1744173098689,0.06517993,104.08,104.06,0.06987152]
[1744173099600,0.06517993,104.08,104.07,9.6173]
[1744173099890,0.06517993,104.08,104.06,0.06987152]
[1744173100091,9.68197993,104.08,104.06,0.06987152]
[1744173100391,0.06517993,104.08,104.06,0.06987152]
[1744173100685,0.06517993,104.08,104.06,9.68767152]
[1744173100891,0.06517993,104.08,104.06,0.06987152]
[1744173102090,9.6173,104.07,104.06,0.06987152]
[1744173102707,9.68187993,104.08,104.06,0.06987152]
[1744173102897,0.06517993,104.08,104.06,0.06987152]
[1744173103097,0.06517993,104.08,104.06,9.68737152]
[1744173103299,0.06517993,104.08,104.06,0.06987152]
[1744173104295,9.68197993,104.08,104.06,0.06987152]
[1744173104705,9.68197993,104.08,104.06,9.68807152]
[1744173104889,0.06517993,104.08,104.06,9.68807152]
[1744173105298,0.06517993,104.08,104.07,9.6173]
[1744173106005,0.06517993,104.08,104.06,9.68777152]
[1744173106201,47.26517993,104.08,104.06,0.06987152]
[1744173106408,79.16174931,104.08,103.98,8.998]
[1744173106706,9.6203,104.04,104.01,9.6224]
[1744173107007,47.2,104.04,103.98,8.998]
[1744173107197,47.2,104.04,104.0,9.6233]
[1744173107409,79.09656938,104.04,103.94,8.998]
[1744173108605,79.09656938,104.04,103.93,47.2]
[1744173108606,9.6245,104.0,103.96,9.6267]
[1744173108815,47.2,103.99,103.91,165.02361669]
[1744173108994,56.5832,103.99,103.91,165.02361669]
[1744173109201,9.627,103.97,103.94,9.6289]
[1744173109400,56.5832,103.99,103.91,8.998]
[1744173109612,56.5832,103.99,103.88,507.62]
[1744173109904,0.06330711,103.95,103.88,507.62]
[1744173110099,56.8281,103.96,103.88,507.62]
[1744173110299,0.07293545,103.93,103.88,507.62]
[1744173110500,0.07293545,103.93,103.92,9.6303]
[1744173111213,9.3832,103.99,103.9,47.2]
[1744173111214,9.3832,103.99,103.97,9.6258]
[1744173111904,9.3832,103.99,103.96,9.627]
[1744173112105,9.3832,103.99,103.91,33.66886938]
[1744173112502,0.07190686,103.96,103.94,0.06966717]
[1744173112806,0.07190686,103.96,103.95,9.6283]
[1744173114511,47.22,104.0,103.99,9.6247]
[1744173115315,31.89656938,104.04,103.96,47.22]
[1744173115316,47.22,104.04,103.96,47.22]
[1744173115610,0.06491447,104.01,103.99,0.06759283]
[1744173115809,47.28491447,104.01,103.99,0.06759283]
[1744173116205,52.06861447,104.01,103.99,0.06759283]
[1744173116608,52.06861447,104.01,103.93,51.8378]
[1744173116810,4.4994,104.0,103.96,9.627]
[1744173117513,14.1236,104.0,103.96,9.627]
[1744173117908,0.07118552,103.99,103.97,0.06505465]
[1744173118320,47.24,103.98,103.97,0.06505465]
[1744173118816,47.24,103.98,103.93,62.0]
[1744173119017,47.24,103.98,103.9,79.13656938]
[1744173119518,56.8657,103.98,103.95,9.6279]
[1744173119717,47.24,103.98,103.95,9.6279]
[1744173119918,47.30637218,103.98,103.9,83.92446938]
[1744173120110,47.24,103.98,103.9,83.92446938]
[1744173120309,0.07224453,103.95,103.9,83.92446938]
[1744173120817,52.0237,104.01,103.92,31.89656938]
[1744173121012,52.0237,104.01,103.94,31.89656938]
[1744173121214,47.24,104.04,103.96,31.89656938]
[1744173121417,4.4922,104.07,103.98,31.89656938]
[1744173121716,9.241,104.1,104.02,31.89656938]
[1744173121920,39.63045131,104.11,104.04,31.89656938]
[1744173122217,39.63045131,104.11,104.06,31.89656938]
[1744173122615,39.63045131,104.11,104.05,47.24]
[1744173123117,0.06353644,104.09,104.07,0.07365686]
[1744173123422,39.63045131,104.11,104.07,0.07365686]
[1744173123609,39.63045131,104.11,104.08,79.11656938]
[1744173123813,39.63045131,104.11,104.1,9.6146]
[1744173124009,25.00315131,104.11,104.1,9.6146]
[1744173124220,10.38455131,104.11,104.1,9.6146]
[1744173125322,0.0704635,104.12,104.1,9.6146]
[1744173126223,0.0704635,104.12,104.11,9.6136]
[1744173126622,0.0704635,104.12,104.09,0.06388003]
[1744173127217,0.0704635,104.12,104.09,9.67928003]
[1744173127417,0.0704635,104.12,104.09,0.06388003]
[1744173127717,47.2,104.11,104.09,0.06388003]
[1744173127913,51.7085,104.11,104.09,0.06388003]
[1744173128125,51.7085,104.11,104.05,9.6188]
[1744173128623,9.6151,104.1,104.06,9.6182]
[1744173129119,9.6155,104.09,104.06,9.6182]
[1744173129317,0.06455515,104.09,104.07,0.06954609]
[1744173129519,51.7085,104.11,104.02,47.2]
[1744173129713,9.6169,104.08,104.02,47.2]
[1744173129923,47.2,104.08,104.02,47.2]
[1744173130221,47.2,104.08,104.05,9.6186]
[1744173130720,47.26810365,104.08,104.05,9.68945094]
[1744173130925,56.88450365,104.08,104.05,9.68945094]
[1744173132131,56.88450365,104.08,104.05,0.07085094]
[1744173132132,47.26810365,104.08,104.05,0.07085094]
[1744173133720,47.26810365,104.08,104.05,9.68925094]
[1744173133926,47.26810365,104.08,104.05,0.07085094]
[1744173134125,0.06810365,104.08,104.05,0.07085094]
[1744173134330,0.06810365,104.08,104.05,62.07085094]
[1744173134835,0.06810365,104.08,104.05,71.68965094]
[1744173135230,9.68460365,104.08,104.05,71.68965094]
[1744173135530,0.06810365,104.08,104.05,71.68965094]
[1744173135728,0.06810365,104.08,104.06,9.6181]
[1744173135925,0.06810365,104.08,104.05,62.07085094]
[1744173136131,47.20810365,104.08,104.05,62.07085094]
[1744173136533,56.82510365,104.08,104.05,62.07085094]
[1744173136933,56.82510365,104.08,104.05,71.68985094]
[1744173137234,47.20810365,104.08,104.05,62.07085094]
[1744173137429,47.20810365,104.08,104.05,71.68965094]
[1744173137625,47.20810365,104.08,104.05,62.07085094]
[1744173137827,0.06810365,104.08,104.05,62.07085094]
[1744173138023,0.06810365,104.08,104.07,9.6173]
[1744173138529,18.8836,104.13,104.1,9.614]
[1744173139440,9.2714,104.13,104.12,9.6127]
[1744173139639,0.07050107,104.13,104.1,0.07314268]
[1744173139933,47.14,104.17,104.1,51.91870369]
[1744173140239,47.14,104.17,104.14,9.6104]
[1744173140422,0.07377999,104.15,104.12,0.06609732]
[1744173140831,0.07377999,104.15,104.1,98.98556101]
[1744173141036,0.07377999,104.15,104.12,0.06163061]
[1744173141230,0.07377999,104.15,104.14,9.6109]
[1744173141433,13.8054,104.19,104.13,47.14]
[1744173141640,47.14,104.22,104.14,51.84556101]
[1744173141939,56.7438,104.22,104.18,9.6066]
[1744173142134,47.14,104.22,104.14,51.84556101]
[1744173142336,47.14,104.22,104.16,51.84556101]
[1744173142528,47.14,104.22,104.19,9.6058]
[1744173142738,47.14,104.22,104.2,62.0]
[1744173142931,0.06389251,104.22,104.2,62.0]
[1744173143342,152.82120349,104.29,104.2,113.84556101]
[1744173143536,157.28600349,104.29,104.22,51.84556101]
[1744173143730,157.28600349,104.29,104.22,98.98556101]
[1744173143930,157.28600349,104.29,104.22,47.14]
[1744173144335,157.28600349,104.29,104.2,62.0]
[1744173144538,0.06911277,104.27,104.24,0.0608643]
[1744173145249,9.6007,104.25,104.24,0.0608643]
[1744173145445,47.12,104.25,104.2,62.0]
[1744173145847,9.6032,104.23,104.2,62.0]
[1744173146144,9.6032,104.23,104.16,98.96556101]
[1744173146343,9.6045,104.21,104.17,9.6077]
[1744173146543,47.18601368,104.21,104.18,0.07000152]
[1744173147044,47.18143958,104.21,104.13,47.12]
[1744173147252,4.507,104.2,104.13,47.12]
[1744173147441,9.6087,104.17,104.13,9.6115]
[1744173147643,9.6087,104.17,104.1,98.94556101]
[1744173148145,0.06349928,104.15,104.13,9.6113]
[1744173148545,0.06349928,104.15,104.12,0.06731394]
[1744173148747,0.06349928,104.15,104.13,9.6118]
[1744173148947,0.06349928,104.15,104.13,71.6118]
[1744173149147,0.06349928,104.15,104.13,62.0]
[1744173149839,0.06349928,104.15,104.13,71.6114]
[1744173150450,0.06349928,104.15,104.14,9.6109]
[1744173151652,0.06349928,104.15,104.13,118.7114]